[Event "European Women Blitz-ch 2024"]
[Site "Monaco"]
[Date "2025.01.10"]
[Round "3.14"]
[White "Hryzlova, Sofiia"]
[Black "Matnadze Bujiashvili, Ann"]
[Result "0-1"]
[Annotator "TA"]
[ECO "A14"]
[WhiteElo "2229"]
[BlackElo "2315"]
[PlyCount "66"]
[EventDate "2025.01.06"]
[EventType "swiss"]
[EventCountry "MNC"]
[SourceTitle "playchess.com"]
[Source "ChessBase"]
[SourceQuality "1"]
[TimeControl "180+2"]

{[%evp 19,66,1,12,0,8,-33,14,1,4,0,0,0,0,0,44,4,35,0,12,22,216,214,176,42,214,208,175,44,147,0,13,0,0,0,0,0,14,5,76,110,72,65,53,46,412,-152,-134,-2034,-2004]} 1. Nf3 {[%emt 0:00:02]} Nf6 {[%emt 0:00:01]} 2. g3 {[%emt 0:00:02]} b6 {[%emt 0:00:01]} 3. Bg2 {[%emt 0:00:02]} Bb7 {[%emt 0:00:00]} 4. c4 {[%emt 0:00:05]} e6 {[%emt 0:00:02]} 5. O-O {[%emt 0:00:07]} c5 {[%emt 0:00:01]} 6. d3 {[%emt 0:00:05]} d5 {[%emt 0:00:02]} 7. b3 {[%emt 0:00:08]} Be7 {[%emt 0:00:03]} 8. Bb2 {[%emt 0:00:02]} O-O {[%emt 0:00:02]} 9. e3 {[%emt 0:00:01]} Nc6 {[%emt 0:00:06]} 10. Qe2 {[%emt 0:00:03]} Re8 {[%emt 0:00:04]} 11. Nbd2 {[%emt 0:00:05]} Bf8 {[%emt 0:00:03]} 12. a3 {[%emt 0:00:22]} Rc8 {[%emt 0:00:04]} (12... e5 $15) 13. Rac1 {[%emt 0:00:04]} g6 {[%emt 0:00:08]} 14. Ne5 {[%emt 0:00:21]} Bg7 {[%emt 0:00:03]} 15. f4 {[%emt 0:00:02][%cal Ob3b4]} Qe7 {[%emt 0:00:15]} 16. Ndf3 {[%emt 0:00:05]} Na5 {[%emt 0:00:02]} 17. Qc2 {[%emt 0:00:05]} Red8 {[%emt 0:00:07]} 18. g4 {[%emt 0:00:04]} Ne8 {[%emt 0:00:05] Strongly threatening ...f6.} 19. g5 $1 {[%emt 0:00:05]} h5 $2 {[%emt 0:00:12]} (19... d4 $11) 20. gxh6 $18 {[%emt 0:00:21]} Bxh6 {[%emt 0:00:02]} 21. h4 {[%emt 0:00:05]} (21. Ng5 $1 $18 Nd6 22. b4 Bxg5 23. fxg5 Qxg5 24. bxa5 dxc4 25. dxc4) 21... Nf6 $2 {[%emt 0:00:11]} (21... Nc6 $1 $14) 22. Ng5 {[%emt 0:00:05]} Rf8 {[%emt 0:00:04] [#]} 23. d4 {[%emt 0:00:08]} (23. Bh3 $1 $18) 23... Bg7 {[%emt 0:00:06]} (23... dxc4 $1 $14 24. Nexf7 (24. bxc4 Bxg2 25. Qxg2 cxd4 $11) 24... Rxf7 25. Qxg6+ (25. bxc4 $2 Bxg2 26. Qxg6+ Rg7 $19) 25... Bg7 26. Bxb7 (26. Qxf7+ Qxf7 27. Nxf7 Bxg2 $17) (26. bxc4 Bxg2 27. Kxg2 Qe8 $17) 26... Nxb7) 24. Qd3 {[%emt 0:00:40]} (24. dxc5 $16 {Bh3 would now be deadly.} dxc4 25. b4 (25. bxc4 Bxg2 26. Qxg2 Qxc5 $11)) 24... cxd4 {[%emt 0:00:07]} 25. exd4 {[%emt 0:00:14]} dxc4 {[%emt 0:00:02]} 26. bxc4 {[%emt 0:00:02]} Bxg2 {[%emt 0:00:21]} 27. Kxg2 {[%emt 0:00:02]} Nh5 {[%emt 0:00:01]} 28. Kh2 {[%emt 0:00:22]} Nc6 {[%emt 0:00:19] [#]} (28... Qf6 $11 {keeps the balance.}) 29. Nxg6 $1 $16 {[%emt 0:00:02]} fxg6 {[%emt 0:00:24]} 30. Qxg6 {[%emt 0:00:01]} Nf6 {[%emt 0:00:01] Inhibits Qh7+.} 31. d5 {[%emt 0:00:02]} e5 $2 {[%emt 0:00:29][%mdl 8192]} 32. fxe5 $2 {[%emt 0:00:02]} ({Less strong is} 32. dxc6 Rxc6 33. Kg1 (33. fxe5 $2 {perishes.} Ng4+ 34. Kg3 Rxg6 $19) 33... Qe8 $16) (32. Rg1 $18) 32... Nxe5 $17 {[%emt 0:00:04] A dynamic duo of knights.} 33. Qf5 $2 {[%emt 0:00:05][%mdl 8192]} (33. Bxe5 $17 Qxe5+ 34. Kh1) 33... Nfg4+ {[%emt 0:00:03]} (33... Nxc4 34. Rfe1 Qd6+ 35. Kh1 Qxd5+ 36. Qxd5+ Nxd5 37. Bxg7 $17) 0-1

[Event "European Women Blitz-ch 2024"]
[Site "Monaco"]
[Date "2025.01.10"]
[Round "3.15"]
[White "Injac, Teodora"]
[Black "Atalik, Ekaterina"]
[Result "0-1"]
[Annotator "TA"]
[ECO "A08"]
[WhiteElo "2453"]
[BlackElo "2395"]
[PlyCount "72"]
[EventDate "2025.01.06"]
[EventType "swiss"]
[EventCountry "MNC"]
[SourceTitle "playchess.com"]
[Source "ChessBase"]
[SourceQuality "1"]
[TimeControl "180+2"]

{[%evp 13,72,-17,-15,-39,0,-44,8,-60,-58,-85,-85,-95,-75,-81,-33,-87,-33,-66,-58,-70,-68,-59,-65,-63,-33,-24,-9,0,34,46,34,23,37,35,30,30,82,50,59,48,121,112,119,81,73,-370,-382,-380,-354,-456,-441,-580,-594,-992,-980,-1104,-960,-1456,-1546,-5808,-5417]} 1. Nf3 {[%emt 0:00:01]} d5 {[%emt 0:00:01]} 2. g3 {[%emt 0:00:01]} Nf6 {[%emt 0:00:02]} 3. Bg2 {[%emt 0:00:01]} c5 {[%emt 0:00:03]} 4. O-O {[%emt 0:00:03]} Nc6 {[%emt 0:00:01]} 5. d3 {[%emt 0:00:02]} e5 {[%emt 0:00:03]} 6. Na3 {[%emt 0:00:03]} Be7 {[%emt 0:00:03]} 7. e4 {[%emt 0:00:01]} O-O {[%emt 0:00:06]} 8. c3 {[%emt 0:00:08]} Re8 {[%emt 0:00:05]} 9. Re1 {[%emt 0:00:06]} (9. exd5 $5 Nxd5 10. Nc4 $11) 9... Bf8 {[%emt 0:00:03]} (9... d4 $15) 10. Bg5 {[%emt 0:00:11]} (10. exd5 $11 Nxd5 11. Nc4) 10... d4 $15 {[%emt 0:00:03]} 11. c4 {[%emt 0:00:04]} h6 {[%emt 0:00:03]} 12. Bd2 {[%emt 0:00:04]} g6 {[%emt 0:00:03]} 13. Rf1 {[%emt 0:00:08]} Bg7 {[%emt 0:00:01]} (13... a6 $17) 14. Nh4 {[%emt 0:00:09]} (14. Qc1 $15) 14... g5 {[%emt 0:00:20]} (14... Bg4 $17 15. Qe1 a6) 15. Nf5 {[%emt 0:00:39]} Bxf5 {[%emt 0:00:02]} 16. exf5 {[%emt 0:00:01]} e4 {[%emt 0:00:04]} 17. dxe4 {[%emt 0:00:02]} Nxe4 {[%emt 0:00:02]} 18. Re1 {[%emt 0:00:20]} Nd6 {[%emt 0:00:05]} 19. Rxe8+ {[%emt 0:00:19]} Qxe8 {[%emt 0:00:02]} 20. Nb5 {[%emt 0:00:07]} Qd7 {[%emt 0:00:09]} (20... Nxc4 $6 21. Nc7 Qd8 (21... Nxb2 $2 22. Nxe8 Nxd1 23. Nxg7 $18) 22. Nxa8 $16) 21. Nxd6 {[%emt 0:00:11]} Qxd6 {[%emt 0:00:01]} 22. Qh5 $36 {[%emt 0:00:09][%mdl 2048] White has some pressure.} Re8 {[%emt 0:00:16]} 23. h4 {[%emt 0:00:02]} gxh4 {[%emt 0:00:16]} 24. Qxh4 {[%emt 0:00:03]} b6 {[%emt 0:00:14]} (24... Re2 $11 {keeps the balance.} 25. Rd1 d3) 25. Qh5 {[%emt 0:00:18]} d3 {[%emt 0:00:15]} 26. Bd5 {[%emt 0:00:03] This pair of bishops is nice.} (26. Bf4 {simplifies} Qf6 27. Rd1 Nd4 28. Rxd3 Qxf5 29. Qxf5 Nxf5 30. Rd5) 26... Rf8 {[%emt 0:00:02]} ({Black should play} 26... Qf6 $14) 27. Re1 $16 {[%emt 0:00:08]} Nd4 {[%emt 0:00:06] Repels Re6} 28. Re4 {[%emt 0:00:07] aiming for Rg4.} Qf6 {[%emt 0:00:07]} 29. g4 $2 {[%emt 0:00:17][%mdl 8192]} (29. Qg4 $16 {stays on course.}) 29... Nf3+ $19 {[%emt 0:00:03]} 30. Kg2 {[%emt 0:00:05]} Nxd2 {[%emt 0:00:02]} 31. Re3 {[%emt 0:00:05]} b5 {[%emt 0:00:16]} (31... Qxb2 $2 32. g5 Qc1 (32... Qxa2 33. Re8 Rxe8 34. Qxf7+ Kh8 35. Qxe8+) 33. f6 Qf1+ (33... Nxc4 $2 34. Rg3 $18) 34. Kg3 Qg1+ 35. Kh3 Qxf2 36. Re7 Qf5+ 37. Qg4 Qxg5 38. fxg7 Kxg7 (38... Qxe7 $2 39. gxf8=B+ Kxf8 40. Qf4 $19) 39. Re3 Qxg4+ 40. Kxg4 $19) 32. Rxd3 {[%emt 0:00:08]} Nxc4 {[%emt 0:00:02]} (32... Qxb2 $2 33. f6 Qxf6 (33... bxc4 $2 {too greedy.} 34. Bxf7+ Rxf7 35. Rd8+ Rf8 36. Qd5+ Kh8 37. Qf7 $18) (33... Bxf6 34. Qxh6 Bg7 35. Rxd2 $11) 34. Rxd2 $17) 33. Bxc4 {[%emt 0:00:00]} bxc4 {[%emt 0:00:01]} 34. Rg3 {[%emt 0:00:00]} Qg5 {[%emt 0:00:02]} 35. Qh1 {[%emt 0:00:01]} Be5 {[%emt 0:00:04]} 36. Rh3 {[%emt 0:00:03]} Qxg4+ {[%emt 0:00:02]} 0-1

[Event "European Women Blitz-ch 2024"]
[Site "Monaco"]
[Date "2025.01.10"]
[Round "3.16"]
[White "Bulmaga, Irina"]
[Black "Piddubna, Bozhena"]
[Result "1-0"]
[Annotator "TA"]
[ECO "C45"]
[WhiteElo "2386"]
[BlackElo "2152"]
[PlyCount "115"]
[EventDate "2025.01.06"]
[EventType "swiss"]
[EventCountry "MNC"]
[SourceTitle "playchess.com"]
[Source "ChessBase"]
[SourceQuality "1"]
[TimeControl "180+2"]

{[%evp 11,115,-13,0,0,0,0,0,0,0,0,0,0,3,10,22,7,14,-3,60,54,57,22,18,16,88,95,111,30,43,41,36,6,6,0,47,0,33,15,12,21,21,13,30,10,981,970,1287,1265,1972,1490,1943,1460,1839,1760,1147,462,700,673,552,464,583,467,619,568,586,568,1090,976,29988,29963,29956,12820,29966,29969,29970,29972,29972,29972,29969,29971,29978,29970,29979,29978,29978,29977,29978,29978,29979,29979,29981,29982,29982,29983,29984,29985,29987,29988,29988,29989,29990,29991,29992,29988,29988,29987]} 1. e4 {[%emt 0:00:01]} e5 {[%emt 0:00:01]} 2. Nf3 {[%emt 0:00:02]} Nc6 {[%emt 0:00:01]} 3. d4 {[%emt 0:00:02]} exd4 {[%emt 0:00:01]} 4. Nxd4 {[%emt 0:00:01]} Nf6 {[%emt 0:00:02]} 5. Nxc6 {[%emt 0:00:03]} bxc6 {[%emt 0:00:01]} 6. Nd2 {[%emt 0:00:01]} d5 {[%emt 0:00:18]} 7. exd5 {[%emt 0:00:03]} cxd5 {[%emt 0:00:01]} 8. Bb5+ {[%emt 0:00:02]} Bd7 {[%emt 0:00:02]} 9. Bxd7+ {[%emt 0:00:02]} Qxd7 {[%emt 0:00:02]} 10. O-O {[%emt 0:00:02]} Be7 {[%emt 0:00:01]} 11. b3 {[%emt 0:00:04]} O-O {[%emt 0:00:05]} 12. Bb2 {[%emt 0:00:02]} Qf5 {[%emt 0:00:04]} 13. Nf3 {[%emt 0:00:05]} Rfe8 {[%emt 0:00:22]} 14. Qd3 {[%emt 0:00:22]} Qh5 {[%emt 0:02:29]} ({Black should try} 14... Qxd3 $11 15. cxd3 Rac8) 15. Rad1 $14 {[%emt 0:00:12]} Rad8 {[%emt 0:00:00][%cal Ba8d8,Bd8d5,Bd5c5][%mdl 32]} 16. h3 {[%emt 0:00:05]} Ne4 {[%emt 0:00:00]} (16... Qg6 {simplifies} 17. Qxg6 hxg6 18. Nd4 c5) 17. c4 {[%emt 0:00:14][%cal Rc4d5]} Bf6 {[%emt 0:00:00]} (17... h6 $11) 18. Bxf6 $16 {[%emt 0:00:09]} Nxf6 {[%emt 0:00:00]} 19. cxd5 {[%emt 0:00:05]} ({White should try} 19. Rfe1 $16) 19... Rxd5 $11 {[%emt 0:00:00]} 20. Qc4 {[%emt 0:00:07]} Rc5 {[%emt 0:00:00]} 21. Qa6 {[%emt 0:00:16][%cal Oa2a4] White wants to play a4!.} Ra5 {[%emt 0:00:00]} 22. Qc4 {[%emt 0:00:08]} Rc5 {[%emt 0:00:00]} 23. Qd3 {[%emt 0:00:12]} (23. Qd4 $14 {feels stronger.}) 23... h6 {[%emt 0:00:01]} 24. Rfe1 {[%emt 0:00:04]} Rxe1+ {[%emt 0:00:05]} 25. Rxe1 {[%emt 0:00:02]} Qd5 {[%emt 0:00:09]} 26. Qb1 {[%emt 0:00:19]} Rc6 {[%emt 0:00:04]} 27. Rd1 {[%emt 0:00:03]} Qe6 $2 {[%emt 0:00:04][%mdl 8192]} (27... Qe4 $11) 28. Nd4 $18 {[%emt 0:00:15][%csl LRc6,LRe6]} Qd6 {[%emt 0:00:01]} 29. Nxc6 {[%emt 0:00:02]} Qxc6 {[%emt 0:00:02][%mdl 4096] Endgame KQR-KQN} 30. Rd8+ {[%emt 0:00:02]} Ne8 {[%emt 0:00:00]} 31. Qe1 {[%emt 0:00:03]} Kf8 {[%emt 0:00:02]} 32. Qb4+ {[%emt 0:00:02]} Kg8 {[%emt 0:00:03]} 33. Qd2 {[%emt 0:00:10]} (33. Qc4 $142 Qg6 34. Rxe8+ Kh7 35. Qe4 (35. Qxc7 a6 $18)) 33... Kh7 {[%emt 0:00:03]} (33... Kf8 $142 34. Qb4+ Kg8) 34. Qd3+ {[%emt 0:00:06]} g6 {[%emt 0:00:02]} 35. Rd7 {[%emt 0:00:09]} Qf6 {[%emt 0:00:02]} 36. g3 {[%emt 0:00:07]} Ng7 {[%emt 0:00:03]} 37. Qd4 {[%emt 0:00:05]} Qf5 {[%emt 0:00:02]} 38. Qd5 {[%emt 0:00:03]} Qb1+ {[%emt 0:00:02]} 39. Kg2 {[%emt 0:00:01]} Qxa2 {[%emt 0:00:02]} 40. Qxf7 {[%emt 0:00:02][%csl Gd7][%cal Rf7g7]} Qb2 {[%emt 0:00:02]} 41. Rxc7 {[%emt 0:00:03][%cal Of7g7] Threatening mate with Qxg7+!.} Qd4 {[%emt 0:00:02] [#]} 42. Qxg7+ $1 {[%emt 0:00:03]} Qxg7 {[%emt 0:00:01]} 43. Rxg7+ {[%emt 0:00:01]} Kxg7 {[%emt 0:00:01] KP-KP. White is a pawn up.} 44. Kf3 {[%emt 0:00:02]} Kf6 {[%emt 0:00:01]} 45. Ke4 {[%emt 0:00:00]} Ke6 {[%emt 0:00:02]} 46. f4 {[%emt 0:00:03]} Kd6 {[%emt 0:00:02]} 47. g4 {[%emt 0:00:04]} Ke6 {[%emt 0:00:04]} 48. Kd4 {[%emt 0:00:01]} Kd6 {[%emt 0:00:02]} 49. b4 {[%emt 0:00:02][%cal Bb3b4,Bb4b5][%mdl 32]} Ke6 {[%emt 0:00:02]} 50. Kc5 {[%emt 0:00:03]} h5 {[%emt 0:00:02]} 51. b5 {[%emt 0:00:02]} hxg4 {[%emt 0:00:03]} 52. hxg4 {[%emt 0:00:01][%cal Bh3g4,Bg4f5,Bf5f6][%mdl 32] K3P-KPP. White is a pawn up.} Kd7 {[%emt 0:00:02]} 53. Kd5 {[%emt 0:00:02]} Kc7 {[%emt 0:00:01]} 54. f5 {[%emt 0:00:05]} gxf5 {[%emt 0:00:02]} 55. gxf5 {[%emt 0:00:03]} Kd7 {[%emt 0:00:01]} 56. f6 {[%emt 0:00:01]} Kd8 {[%emt 0:00:01]} 57. Kc6 {[%emt 0:00:01]} Ke8 {[%emt 0:00:01]} 58. Kb7 {[%emt 0:00:01]} 1-0

[Event "European Women Blitz-ch 2024"]
[Site "Monaco"]
[Date "2025.01.10"]
[Round "3.17"]
[White "Papp, Petra"]
[Black "Kubicka, Anna"]
[Result "0-1"]
[Annotator "TA"]
[ECO "A49"]
[WhiteElo "2235"]
[BlackElo "2230"]
[PlyCount "210"]
[EventDate "2025.01.06"]
[EventType "swiss"]
[EventCountry "MNC"]
[SourceTitle "playchess.com"]
[Source "ChessBase"]
[SourceQuality "1"]
[TimeControl "180+2"]

{[%evp 48,210,20,-86,-65,-54,-36,-46,-27,-13,-13,-102,-95,-109,-93,-109,-109,-109,-102,-235,-191,-295,-288,-281,-205,-414,-170,-169,-164,-166,-153,-153,-153,-150,-137,-232,-225,-232,-232,-232,-232,-647,-533,-630,-204,-465,-159,-162,-158,-697,-703,-788,-244,-244,-738,-804,-817,-787,-758,-631,-254,-1208,-164,-139,-122,-1916,-1800,-1997,-2016,-1749,-1594,-2223,-2036,-2354,-2225,-2303,-2343,-2133,-2284,-29963,-5810,-11593,-2358,-29966,-29962,-7565,-5714,-2393,-2394,-2369,-2381,-1866,-2382,-2387,-2386,-2393,-2393,-2434,-9084,-10527,0,-11747,-8659,-9681,-5983,-9681,-4899,-5539,-2100,-7116,-5213,-8539,-6512,-29938,-6264,-6087,-5545,-29982,-5206,-29974,-29950,-29979,0,-29969,-12186,-6215,0,-29980,-29981,-29982,-29983,-29982,-29984,-29984,-29985,-29985,-29986,-29986,-29987,-29987,-29988,-29989,-29988,-29988,-29989,-29991,-29992,-29991,-29990,-29994,-29993,-29993,-29994,-29994,-29994,-29994,-29995,-29995,-29996,-29996,-29997,-29997,-29998,-29998,-29999]} 1. d4 {[%emt 0:00:02]} Nf6 {[%emt 0:00:01]} 2. Nf3 {[%emt 0:00:01]} g6 {[%emt 0:00:01]} 3. g3 {[%emt 0:00:04]} Bg7 {[%emt 0:00:01]} 4. Bg2 {[%emt 0:00:01]} O-O {[%emt 0:00:02]} 5. O-O {[%emt 0:00:01]} d6 {[%emt 0:00:01]} 6. Re1 {[%emt 0:00:01]} c5 {[%emt 0:00:02]} 7. dxc5 {[%emt 0:00:04]} dxc5 {[%emt 0:00:02]} 8. c3 {[%emt 0:00:02]} Nc6 {[%emt 0:00:03]} 9. Qxd8 {[%emt 0:00:23]} Rxd8 {[%emt 0:00:02]} 10. Be3 {[%emt 0:00:01]} c4 {[%emt 0:00:30]} 11. Na3 {[%emt 0:00:01]} Be6 {[%emt 0:00:17]} 12. Nb5 {[%emt 0:00:11]} Nd5 {[%emt 0:00:06]} 13. Bd4 {[%emt 0:00:10]} Nxd4 {[%emt 0:00:57]} 14. Nfxd4 {[%emt 0:00:04]} a6 {[%emt 0:00:42]} 15. Nxe6 {[%emt 0:00:02]} fxe6 {[%emt 0:00:01]} 16. Na3 {[%emt 0:00:09]} b5 {[%emt 0:00:03]} 17. Nc2 {[%emt 0:00:02]} Rac8 {[%emt 0:00:20]} 18. Rad1 {[%emt 0:00:05]} Nb6 {[%emt 0:00:12]} 19. Nb4 {[%emt 0:00:12]} Na4 {[%emt 0:00:04]} 20. Nc6 {[%emt 0:00:06]} Rxd1 {[%emt 0:00:02]} 21. Rxd1 {[%emt 0:00:02]} Rc7 {[%emt 0:00:02]} 22. Rd2 {[%emt 0:00:29]} Kf7 {[%emt 0:00:05]} 23. f4 {[%emt 0:00:05]} Bf6 {[%emt 0:00:02]} 24. e4 {[%emt 0:00:06]} e5 $2 {[%emt 0:00:02]} ({Better is} 24... Rxc6 $17 25. e5 Rc7 26. exf6 exf6) 25. fxe5 {[%emt 0:00:08]} (25. Nxe5+ Bxe5 26. fxe5 Ke6 $15) (25. Nd8+ $1 $11 Kg8 26. Ne6) 25... Bg5 {[%emt 0:00:01]} 26. Nd8+ $1 {[%emt 0:00:22]} Ke8 {[%emt 0:00:05]} 27. Rd5 $1 {[%emt 0:00:07]} (27. Ne6 $2 Bxd2 28. Nxc7+ Kd8 29. Ne6+ Kd7 $19 (29... Kc8 $2 30. b3 $19)) 27... Rd7 {[%emt 0:00:03]} 28. Ne6 $1 {[%emt 0:00:09]} Bc1 {[%emt 0:00:01]} 29. Bh3 {[%emt 0:00:12]} (29. Ng7+ $11 Kd8 30. Ne6+ Kc8 31. Bh3 Rxd5 (31... Nxb2 $2 32. Nd4 $18) (31... Bxb2 $2 32. Nf8 $18) 32. exd5) 29... Rxd5 $17 {[%emt 0:00:02]} 30. exd5 {[%emt 0:00:01]} Bxb2 {[%emt 0:00:01]} 31. d6 {[%emt 0:00:01]} exd6 {[%emt 0:00:02]} (31... Bxc3 $6 32. Nc7+ Kd8 33. Ne6+ Ke8 34. Nc7+ Kd8 35. Ne6+ Ke8 $11) (31... Nxc3 $2 32. Nd4 $18) 32. exd6 {[%emt 0:00:01]} Bxc3 {[%emt 0:00:02]} (32... Nxc3 $2 33. Nd4 $18) (32... Kd7 {simplifies} 33. Nc5+ Kxd6 34. Nxa4 bxa4 35. Bc8 a5) 33. Nf4 {[%emt 0:00:33]} (33. Kf1 $17) 33... Ba5 {[%emt 0:00:02]} 34. d7+ {[%emt 0:00:01]} (34. Kf2) 34... Ke7 $19 {[%emt 0:00:01]} 35. Nd5+ {[%emt 0:00:09]} Kd8 {[%emt 0:00:02]} 36. Nf4 $2 {[%emt 0:00:06]} (36. Kf1) 36... Nc5 {[%emt 0:00:03]} (36... c3 $142 37. Ne2 c2) 37. Ne6+ $19 {[%emt 0:00:00]} Nxe6 {[%emt 0:00:01]} 38. Bxe6 {[%emt 0:00:00]} c3 {[%emt 0:00:03]} 39. Bb3 {[%emt 0:00:00]} Kxd7 {[%emt 0:00:02]} 40. Kf2 {[%emt 0:00:00]} Bb6+ {[%emt 0:00:01]} 41. Kf3 {[%emt 0:00:01]} (41. Ke2 $17 {was worth a try.}) 41... Kd6 $19 {[%emt 0:00:02]} 42. Ke4 {[%emt 0:00:00] [#]} Bg1 $1 {[%emt 0:00:04]} 43. h3 {[%emt 0:00:00] [#]} Kc5 $1 {[%emt 0:00:02]} 44. Kd3 $2 {[%emt 0:00:01]} (44. a3) 44... Kb4 $19 {[%emt 0:00:04]} 45. Kc2 {[%emt 0:00:00]} Bd4 $2 {[%emt 0:00:03]} (45... Bf2 46. g4 h6) 46. g4 $2 {[%emt 0:00:02]} (46. a4 {is the only way for White.}) 46... Bf6 $2 {[%emt 0:00:07]} (46... Ka3 $19 47. Kb1 Be5) 47. Bg8 $17 {[%emt 0:00:03]} h6 {[%emt 0:00:00]} 48. Bh7 $2 {[%emt 0:00:03]} (48. g5 $17 hxg5 (48... Bxg5 $2 49. Bh7 $19) 49. Bf7) 48... g5 $19 {[%emt 0:00:00]} 49. Bg8 {[%emt 0:00:01]} a5 {[%emt 0:00:00]} 50. Be6 {[%emt 0:00:03]} a4 {[%emt 0:00:03]} 51. Bd7 {[%emt 0:00:00]} Ka5 {[%emt 0:00:01]} 52. Be8 {[%emt 0:00:02]} Kb6 {[%emt 0:00:02]} 53. Bd7 {[%emt 0:00:01]} Kc5 {[%emt 0:00:01]} (53... Bh8 $142 54. Kd3 Ka5) 54. Be8 $2 {[%emt 0:00:01]} (54. Kd3) 54... Bd4 $2 {[%emt 0:00:01]} (54... a3 55. Kd3 b4) 55. Bd7 {[%emt 0:00:01]} a3 {[%emt 0:00:03]} 56. Kb3 $2 {[%emt 0:00:01][%mdl 8192]} (56. Kd3 $17) 56... b4 $19 {[%emt 0:00:01]} 57. Be6 {[%emt 0:00:05]} Bf6 {[%emt 0:00:01]} 58. Kc2 {[%emt 0:00:01]} Kd4 {[%emt 0:00:01]} 59. Bf7 {[%emt 0:00:06]} Ke3 {[%emt 0:00:02]} 60. Bc4 {[%emt 0:00:07]} Kf2 {[%emt 0:00:02]} 61. Bb5 {[%emt 0:00:01]} Kg2 {[%emt 0:00:02]} 62. Be8 {[%emt 0:00:03]} Kxh3 {[%emt 0:00:02]} 63. Bh5 {[%emt 0:00:00]} Kh4 {[%emt 0:00:02]} (63... Kg3 $142 64. Kb3 Kf3 65. Kc2 Be5 66. Kb3 Ke3 67. Kc2 b3+ 68. Kxb3 Kd2 69. Bg6 h5 70. gxh5 g4 71. Kxa3 g3 (71... c2 $2 72. Bxc2 Kxc2 73. Kb4 $19) 72. Be4 c2 73. Bxc2 g2 (73... Kxc2 $2 74. Kb4 $19) 74. Be4 g1=Q (74... g1=R $2 75. Kb3 $19) 75. Kb4 Qb6+ 76. Kc4 Qe6+ 77. Kb4 Bc7 (77... Qxa2 $2 78. Bg2 $19) 78. Bb7 Kd3 (78... Qxa2 $2 79. Bc6 $19) 79. Be4+ Qxe4+ (79... Kxe4 80. Kc3 Qxa2 81. Kb4 Kd5 82. h6 Qb1+ 83. Ka4 Kc4 84. Ka3 Qb3#) 80. Kb3 Qb7+ 81. Ka4 Kc4 82. h6 Qb4#) 64. Kb3 $19 {[%emt 0:00:01]} Kg3 {[%emt 0:00:04]} 65. Kc2 {[%emt 0:00:00]} Kf4 {[%emt 0:00:01]} 66. Kb3 {[%emt 0:00:01]} Be7 {[%emt 0:00:01]} 67. Kc2 {[%emt 0:00:00]} Bd6 {[%emt 0:00:02]} 68. Kb3 {[%emt 0:00:01]} Kf3 {[%emt 0:00:01]} 69. Kc2 {[%emt 0:00:01]} Be7 {[%emt 0:00:01]} 70. Kb3 {[%emt 0:00:01]} Ke2 {[%emt 0:00:03]} 71. Kc2 {[%emt 0:00:00]} Ke3 {[%emt 0:00:01]} 72. Bf7 {[%emt 0:00:02]} Ke4 {[%emt 0:00:01]} 73. Be8 {[%emt 0:00:01]} Kf4 {[%emt 0:00:01]} 74. Bh5 $1 {[%emt 0:00:01]} Ke5 {[%emt 0:00:02]} 75. Be8 {[%emt 0:00:01]} Kd4 {[%emt 0:00:04]} 76. Bf7 {[%emt 0:00:03]} Bd6 {[%emt 0:00:01]} 77. Bg8 {[%emt 0:00:01]} Bf4 {[%emt 0:00:02]} 78. Bf7 {[%emt 0:00:00]} Ke4 {[%emt 0:00:02]} 79. Bg8 {[%emt 0:00:02]} Kf3 {[%emt 0:00:01]} 80. Be6 {[%emt 0:00:04]} Kg3 {[%emt 0:00:01]} (80... h5 $142 81. gxh5 g4 82. Bf5 g3 83. Bc8 g2 84. Bb7+ Kg3 85. Bxg2 Kxg2 86. Kb3 Kf3 87. Kc2 Ke3 88. h6 Bxh6 89. Kb3 Kd3 (89... Bf8 90. Kc2 Ke4 91. Kd1 b3 92. axb3 a2 93. Ke2 a1=Q 94. Kf2 c2 95. Kg3 Qg1+ 96. Kh4 c1=Q 97. Kh5 Qh6#) 90. Kxb4 c2 91. Kc5 c1=Q+ (91... c1=B $2 92. Kd5 $19) 92. Kd6 Ke4 93. Ke7 Kd5 94. Kf6 Qc6+ 95. Ke7 Qc8 96. Kf7 Qe6#) 81. Kd3 {[%emt 0:00:04]} Be5 {[%emt 0:00:03]} 82. Bf5 {[%emt 0:00:07]} Bg7 {[%emt 0:00:04]} (82... b3 $142 83. axb3 a2 84. Kc4 a1=Q (84... a1=B $2 85. Kd3 $19) 85. Kd5 Kf4 (85... Qa5+ $2 86. Ke6 $19) 86. Kc5 Qd1 87. Kb4 c2 88. Bxc2 Qxc2 89. Kb5 Bc7 (89... Qxb3+ 90. Kc5 Ke4 91. Kc6 Qb4 92. Kd7 Kd5 93. Ke8 Ke6 94. Kd8 Qf8#) 90. Kb4 Qc6 (90... Kxg4 91. Kb5 Qc3 92. b4 h5 93. Ka4 Qc4 94. Ka3 Qc2 95. b5 Bd6#) 91. Ka3 Be5 (91... Kxg4 92. Kb2 Be5+ 93. Ka3 Qc5+ 94. b4 Qc2 95. b5 Bd6#) 92. b4 Qc2 93. b5 Bd6#) 83. Be6 {[%emt 0:00:06]} Kh4 {[%emt 0:00:01]} 84. Ke2 {[%emt 0:00:04]} Kg3 {[%emt 0:00:09]} 85. Kd3 {[%emt 0:00:02]} Kh3 {[%emt 0:00:02]} (85... h5 $142 86. gxh5 g4 87. Kc2 Kf3 88. Bg8 g3 89. Bd5+ Kf2 90. Bh1 g2 91. Bxg2 Kxg2 92. Kb3 Kf3 93. Kc2 Ke4 94. Kb3 Ke5 95. Kc2 Kd4 96. h6 Bxh6 97. Kb3 Be3 98. Kc2 b3+ (98... Kc4 {leads to mate.} 99. Kd1 Kd3 100. Ke1 c2 101. Kf1 c1=Q+ 102. Kg2 Qg1+ 103. Kf3 Kd4 104. Ke2 Qf2+ 105. Kd1 Qd2#) 99. Kxb3 Kd3 100. Kb4 c2 101. Kxa3 c1=Q+ (101... c1=B+ $2 102. Kb4 $19) 102. Kb4 Qb1+ 103. Ka5 Kc4 104. Ka6 Qb6#) 86. Ke2 $19 {[%emt 0:00:01]} Kg3 {[%emt 0:00:02]} 87. Kd3 {[%emt 0:00:01]} h5 {[%emt 0:00:01]} 88. gxh5 {[%emt 0:00:02]} Kf3 {[%emt 0:00:02]} 89. Kc2 {[%emt 0:00:13]} g4 {[%emt 0:00:01]} 90. Bd5+ {[%emt 0:00:02]} Kf2 {[%emt 0:00:01]} 91. Kb3 {[%emt 0:00:01]} Bf8 {[%emt 0:00:03]} 92. h6 {[%emt 0:00:01]} Bxh6 {[%emt 0:00:02]} 93. Be4 {[%emt 0:00:01]} g3 {[%emt 0:00:02]} 94. Kxb4 {[%emt 0:00:01]} c2 {[%emt 0:00:02]} 95. Bxc2 {[%emt 0:00:04]} g2 {[%emt 0:00:01]} 96. Kxa3 {[%emt 0:00:01]} g1=Q {[%emt 0:00:02]} 97. Kb4 {[%emt 0:00:01]} Bf8+ {[%emt 0:00:01]} 98. Kb3 {[%emt 0:00:01]} Qe1 {[%emt 0:00:01]} 99. a3 {[%emt 0:00:01]} Qe3+ {[%emt 0:00:02]} 100. Kc4 {[%emt 0:00:01]} Qxa3 {[%emt 0:00:02]} 101. Bd3 {[%emt 0:00:02]} Qc5+ {[%emt 0:00:02]} 102. Kb3 {[%emt 0:00:00]} Qb4+ {[%emt 0:00:00]} 103. Kc2 {[%emt 0:00:01]} Bg7 {[%emt 0:00:01]} 104. Bf5 {[%emt 0:00:05]} Qc3+ {[%emt 0:00:01]} 105. Kd1 {[%emt 0:00:01]} Bh6 {[%emt 0:00:01]} 0-1